lending/lending_fUSD_20250121
["ID","MTS","AMOUNT","RATE_DAILY","PERIOD"]
[349848486,1737459069300,-5968.33447234,0.00021882,2]
[349848487,1737459069309,-813.01859384,0.00021883,2]
[349848488,1737459069319,-8097.63570274,0.00021883,2]
[349848489,1737459069328,-200.0,0.00021884,2]
[349848490,1737459069337,-1484.58648604,0.00021884,2]
[349848491,1737459069346,-631.48040923,0.00021885,2]
[349848492,1737459069356,-2151.54387448,0.00021886,2]
[349848493,1737459069365,-230.3227726,0.00021888,2]
[349848494,1737459069374,-2151.54387448,0.00021888,2]
[349848495,1737459069386,-3743.321829,0.00021889,2]
[349848496,1737459069395,-8097.63570274,0.0002189,2]
[349848497,1737459069404,-200.0,0.0002189,2]
[349848498,1737459069414,-3863.73385763,0.0002189,2]
[349848499,1737459069423,-500.0,0.0002189,2]
[349848500,1737459069433,-19256.9105072,0.00021891,2]
[349848501,1737459069442,-204.10259436,0.00021891,2]
[349848502,1737459069452,-9141.91823355,0.00021891,2]
[349848503,1737459069461,-1641.79898146,0.00021892,2]
[349848504,1737459069471,-106245.63725991,0.00021893,2]
[349848505,1737459069480,-200.0,0.00021893,2]
[349848506,1737459069490,-9141.91823355,0.00021895,2]
[349848507,1737459069499,-3083.82397117,0.00021895,2]
[349848508,1737459069509,-1484.58648604,0.00021896,2]
[349848509,1737459069519,-1034.95867915,0.00021896,2]
[349848510,1737459069529,-200.0,0.00021897,2]
[349848511,1737459069539,-3743.321829,0.00021898,2]
[349848512,1737459069548,-609.4792092,0.00021898,2]
[349848513,1737459069562,-622.18148127,0.00021898,2]
[349848514,1737459069572,-40860.44923282,0.00021899,2]
[349848515,1737459069583,-13439.80362151,0.00021899,2]
[349848516,1737459069592,-14929.58756374,0.000219,2]
[349848517,1737459069603,-1484.58648604,0.000219,2]
[349848518,1737459069612,-8500.0,0.000219,2]
[349848519,1737459069622,-5800.0,0.000219,2]
[349848520,1737459069632,-191.92021466,0.000219,2]
[349848521,1737459069643,-2000.0,0.000219,2]
[349848522,1737459069654,-2000.0,0.000219,2]
[349848523,1737459069663,-2000.0,0.000219,2]
[349848524,1737459069673,-2000.0,0.000219,2]
[349848525,1737459069683,-2000.0,0.000219,2]
[349848526,1737459069693,-2000.0,0.000219,2]
[349848527,1737459069702,-2000.0,0.000219,2]
[349848528,1737459069712,-2000.0,0.000219,2]
[349848529,1737459069721,-2000.0,0.000219,2]
[349848530,1737459069731,-2000.0,0.000219,2]
[349848531,1737459069740,-2000.0,0.000219,2]
[349848532,1737459069750,-2000.0,0.000219,2]
[349848533,1737459069759,-1000.0,0.000219,2]
[349848534,1737459069769,-5049.34272362,0.000219,2]
[349848535,1737459069778,-151.0,0.000219,2]
[349848536,1737459069788,-151.0,0.000219,2]
[349848537,1737459069797,-152.598196,0.000219,2]
[349848538,1737459069807,-151.0,0.000219,2]
[349848539,1737459069816,-693.33549251,0.000219,2]
[349848540,1737459069825,-151.0,0.000219,2]
[349848541,1737459069835,-151.0,0.000219,2]
[349848542,1737459069844,-151.0,0.000219,2]
[349848543,1737459069854,-151.965447,0.000219,2]
[349848544,1737459069863,-151.0,0.000219,2]
[349848545,1737459069873,-151.0,0.000219,2]
[349848546,1737459069884,-153.671291,0.000219,2]
[349848547,1737459069894,-151.0,0.000219,2]
[349848548,1737459069903,-528.63429177,0.000219,2]
[349848549,1737459069912,-217.204996,0.000219,2]
[349848550,1737459069922,-217.204996,0.000219,2]
[349848551,1737459069932,-942.015304,0.000219,2]
[349848552,1737459069942,-942.015304,0.000219,2]
[349848553,1737459069952,-177.18686467,0.000219,2]
[349848554,1737459069962,-152.2946019,0.000219,2]
[349848555,1737459069972,-152.29460187,0.000219,2]
[349848556,1737459069983,-152.29460187,0.000219,2]
[349848557,1737459069993,-152.29460187,0.000219,2]
[349848558,1737459070002,-152.29460187,0.000219,2]
[349848559,1737459070011,-152.29460187,0.000219,2]
[349848560,1737459070021,-152.29460187,0.000219,2]
[349848561,1737459070031,-152.29460187,0.000219,2]
[349848562,1737459070040,-152.29460187,0.000219,2]
[349848563,1737459070050,-152.29460187,0.000219,2]
[349848564,1737459070062,-152.29460187,0.000219,2]
[349848565,1737459070071,-152.29460187,0.000219,2]
[349848566,1737459070080,-152.29460187,0.000219,2]
[349848567,1737459070090,-500.0,0.00021916,2]
[349848568,1737459070100,-1213.76,0.00021916,2]
[349848569,1737459070110,-624.28,0.00021916,2]
[349848570,1737459070119,-1357.46,0.00021916,2]
[349848571,1737459070129,-6606.09,0.00021916,2]
[349848572,1737459070140,-500.0,0.00021916,2]
[349848573,1737459070150,-500.0,0.00021916,2]
[349848574,1737459070160,-409.204484,0.00021916,2]
[349848575,1737459070170,-785.18,0.00021916,2]
[349848576,1737459070179,-724.87,0.00021916,2]
[349848577,1737459070188,-1338.48,0.00021916,2]
[349848578,1737459070198,-596.08,0.00021916,2]
[349848579,1737459070207,-1373.44,0.00021916,2]
[349848580,1737459070216,-762.52,0.00021916,2]
[349848581,1737459070226,-289.329478,0.00021916,2]
[349848582,1737459070236,-830.31,0.00021916,2]
[349848583,1737459070246,-500.0,0.00021916,2]
[349848584,1737459070256,-500.0,0.00021916,2]
[349848585,1737459070266,-2465.73,0.00021916,2]
[349848586,1737459070276,-1634.47,0.00021916,2]
[349848587,1737459070286,-910.98,0.00021916,2]
[349848588,1737459070296,-760.26,0.00021916,2]
[349848589,1737459070306,-1581.37,0.00021916,2]
[349848590,1737459070315,-1827.33,0.00021916,2]
[349848591,1737459070325,-500.0,0.00021916,2]
[349848592,1737459070334,-1239.55,0.00021916,2]
[349848593,1737459070344,-923.48,0.00021916,2]
[349848594,1737459070355,-150.196153,0.00021916,2]
[349848595,1737459070364,-2290.67,0.00021916,2]
[349848596,1737459070373,-801.08,0.00021916,2]
[349848597,1737459070386,-886.64,0.00021916,2]
[349848598,1737459070519,-677.79,0.00021916,2]
[349848599,1737459070539,-963.55,0.00021916,2]
[349848600,1737459070549,-1690.83,0.00021916,2]
[349848601,1737459070560,-1017.87,0.00021916,2]
[349848602,1737459070570,-500.0,0.00021917,2]
[349848603,1737459070582,-915.83,0.00021917,2]
[349848604,1737459070592,-502.36,0.00021917,2]
[349848605,1737459070601,-502.36,0.00021917,2]
[349848606,1737459070611,-502.36,0.00021917,2]
[349848607,1737459070620,-502.36,0.00021917,2]
[349848608,1737459070629,-502.36,0.00021917,2]
[349848609,1737459070644,-502.36,0.00021917,2]
[349848610,1737459070653,-502.36,0.00021917,2]
[349848611,1737459070662,-502.36,0.00021917,2]
[349848612,1737459070673,-502.36,0.00021917,2]
[349848613,1737459070682,-531.82,0.00021917,2]
[349848614,1737459070691,-500.0,0.00021917,2]
[349848615,1737459070700,-500.0,0.00021917,2]
[349848616,1737459070710,-500.0,0.00021917,2]
[349848617,1737459070720,-500.0,0.00021917,2]
[349848618,1737459070729,-500.0,0.00021917,3]
[349848619,1737459070739,-500.0,0.00021917,3]
[349848620,1737459070748,-500.0,0.00021917,3]
[349848621,1737459070757,-500.0,0.00021917,3]
[349848622,1737459070767,-500.0,0.00021917,3]
[349848623,1737459070777,-500.0,0.00021917,3]
[349848624,1737459070786,-500.0,0.00021917,3]
[349848625,1737459070795,-500.0,0.00021917,3]
[349848626,1737459070804,-500.0,0.00021917,3]
[349848627,1737459070813,-588.98,0.00021917,2]
[349848628,1737459070822,-504.69,0.00021917,2]
[349848629,1737459070832,-500.0,0.00021917,2]
[349848630,1737459070841,-996.46,0.00021917,2]
[349848631,1737459070850,-500.0,0.00021917,2]
[349848632,1737459070859,-569.02,0.00021917,2]
[349848633,1737459070868,-504.63,0.00021917,2]
[349848634,1737459070877,-523.35,0.00021917,2]
[349848635,1737459070891,-523.35,0.00021917,2]
[349848636,1737459070900,-523.35,0.00021917,2]
[349848637,1737459070909,-523.35,0.00021917,2]
[349848638,1737459070918,-523.35,0.00021917,2]
[349848639,1737459070927,-523.35,0.00021917,2]
[349848640,1737459070937,-523.35,0.00021917,2]
[349848641,1737459070946,-523.35,0.00021917,2]
[349848642,1737459070955,-523.35,0.00021917,2]
[349848643,1737459070964,-500.0,0.00021917,2]
[349848644,1737459070973,-561.3,0.00021917,2]
[349848645,1737459070982,-500.0,0.00021917,2]
[349848646,1737459070991,-500.0,0.00021917,2]
[349848647,1737459071000,-500.0,0.00021917,2]
[349848648,1737459071009,-381.26380822,0.00021917,2]
[349848649,1737459071019,-500.0,0.00021917,2]
[349848650,1737459071027,-500.0,0.00021917,2]
[349848651,1737459071037,-500.0,0.00021917,2]
[349848652,1737459071046,-500.0,0.00021917,2]
[349848653,1737459071055,-500.0,0.00021917,2]
[349848654,1737459071064,-272.24082311,0.00021917,2]
[349848655,1737459071073,-500.0,0.00021917,2]
[349848656,1737459071083,-500.0,0.00021917,2]
[349848657,1737459071092,-500.0,0.00021917,2]
[349848658,1737459071101,-510.00388083,0.00021917,2]
[349848659,1737459071110,-500.0,0.00021917,2]
[349848660,1737459071119,-500.0,0.00021917,2]
[349848661,1737459071128,-500.0,0.00021917,2]
[349848662,1737459071141,-500.0,0.00021917,2]
[349848663,1737459071150,-500.0,0.00021917,2]
[349848664,1737459071159,-500.0,0.00021917,2]
[349848665,1737459071168,-500.0,0.00021917,2]
[349848666,1737459071178,-2379.98,0.00021917,2]
[349848667,1737459071187,-500.0,0.00021917,2]
[349848668,1737459071196,-500.0,0.00021917,2]
[349848669,1737459071206,-1310.02,0.00021917,2]
[349848670,1737459071216,-500.0,0.00021917,2]
[349848671,1737459071231,-578.98,0.00021917,2]
[349848672,1737459071251,-1410.6,0.00021917,2]
[349848673,1737459071271,-732.73,0.00021917,2]
[349848674,1737459071284,-786.26,0.00021917,2]
[349848675,1737459071295,-763.29,0.00021917,2]
[349848676,1737459071304,-2378.04,0.00021917,2]
[349848677,1737459071313,-500.0,0.00021917,2]
[349848678,1737459071322,-500.0,0.00021917,2]
[349848679,1737459071331,-2033.22,0.00021917,2]
[349848680,1737459071340,-500.0,0.00021917,2]
[349848681,1737459071350,-804.36,0.00021917,2]
[349848682,1737459071359,-1243.05,0.00021917,2]
[349848683,1737459071368,-500.0,0.00021917,2]
[349848684,1737459071378,-1212.13,0.00021917,2]
[349848685,1737459071391,-801.03,0.00021917,2]
[349848686,1737459071401,-1422.08,0.00021917,2]
[349848687,1737459071411,-801.79,0.00021917,2]
[349848688,1737459071420,-500.0,0.00021917,2]
[349848689,1737459071429,-500.0,0.00021917,2]
[349848690,1737459071439,-776.86,0.00021917,2]
[349848691,1737459071448,-500.0,0.00021917,2]
[349848692,1737459071458,-945.19,0.00021917,2]
[349848693,1737459071467,-536.81,0.00021917,2]
[349848694,1737459071476,-1679.81,0.00021917,2]
[349848695,1737459071485,-1114.25,0.00021917,2]
[349848696,1737459071495,-500.0,0.00021917,2]
[349848697,1737459071504,-500.0,0.00021917,2]
[349848698,1737459071514,-1635.45,0.00021917,2]
[349848699,1737459071523,-300.0,0.00021917,2]
[349848700,1737459071532,-1109.47,0.00021917,2]
[349848701,1737459071542,-534.9,0.00021917,2]
[349848702,1737459071552,-500.0,0.00021917,2]
[349848703,1737459071563,-1760.33,0.00021917,2]
[349848704,1737459071574,-1889.17,0.00021917,2]
[349848705,1737459071586,-802.73,0.00021917,2]
[349848706,1737459071596,-571.56,0.00021917,2]
[349848707,1737459071606,-500.0,0.00021917,2]
[349848708,1737459071617,-1328.05,0.00021917,2]
[349848709,1737459071626,-1490.59,0.00021917,2]
[349848710,1737459071636,-500.0,0.00021917,2]
[349848711,1737459071651,-909.06,0.00021917,2]
[349848712,1737459071670,-500.0,0.00021917,2]
[349848713,1737459071684,-818.71,0.00021917,2]
[349848714,1737459071700,-500.0,0.00021917,2]
[349848715,1737459071716,-2484.05,0.00021917,2]
[349848716,1737459071732,-872.4,0.00021917,2]
[349848717,1737459071745,-500.0,0.00021917,2]
[349848718,1737459071761,-513.49,0.00021917,2]
[349848719,1737459071777,-500.0,0.00021917,2]
[349848720,1737459071794,-500.0,0.00021917,2]
[349848721,1737459071811,-2351.36,0.00021917,2]
[349848722,1737459071827,-500.0,0.00021917,2]
[349848723,1737459071842,-500.0,0.00021917,2]
[349848724,1737459071857,-151.0,0.00021917,2]
[349848725,1737459071872,-500.0,0.00021917,2]
[349848726,1737459071892,-500.0,0.00021917,2]
[349848727,1737459071905,-638.32,0.00021917,2]
[349848728,1737459071917,-544.04,0.00021917,2]
[349848729,1737459071934,-500.0,0.00021917,2]
[349848730,1737459071946,-623.62,0.00021917,2]
[349848731,1737459071959,-1099.665887,0.00021917,2]
[349848732,1737459071975,-500.0,0.00021917,2]
[349848733,1737459071988,-230.042506,0.00021917,2]
[349848734,1737459072002,-1099.665887,0.00021917,2]
[349848735,1737459072015,-537.74,0.00021917,2]
[349848736,1737459072028,-230.042506,0.00021917,2]
[349848737,1737459072041,-500.0,0.00021917,2]
[349848738,1737459072054,-500.0,0.00021917,2]
[349848739,1737459072067,-585.42,0.00021917,2]
[349848740,1737459072080,-2128.11,0.00021917,2]
[349848741,1737459072093,-158.118766,0.00021917,2]
[349848742,1737459072106,-765.34,0.00021917,2]
[349848743,1737459072118,-512.40440752,0.00021917,2]
[349848744,1737459072131,-166.8928346,0.00021917,2]
[349848745,1737459072144,-158.118766,0.00021917,2]
[349848746,1737459072158,-257.25992266,0.00021917,2]
[349848747,1737459072174,-632.05,0.00021917,2]
[349848748,1737459072187,-500.0,0.00021917,2]
[349848749,1737459072200,-500.0,0.00021917,2]
[349848750,1737459072212,-500.0,0.00021917,2]
[349848751,1737459072225,-1427.89,0.00021917,2]
[349848752,1737459072238,-1787.2,0.00021917,2]
[349848753,1737459072251,-531.87,0.00021917,2]
[349848754,1737459072263,-4000.0,0.00021918,2]
[349848755,1737459072276,-2254.72,0.00021918,2]
[349848756,1737459072289,-150.0,0.00021918,2]
[349848757,1737459072301,-300.0,0.00021922,2]
[349848758,1737459072314,-150.0,0.00021925,2]
[349848759,1737459072327,-120517.7718685,0.0002195,2]
[349848760,1737459072339,-3484.07,0.00021959,7]
[349848761,1737459072352,-3484.07,0.00021959,7]
[349848762,1737459072364,-350.0,0.00021968,2]
[349848763,1737459072377,-19789.0,0.00021973,2]
[349848764,1737459072392,-692.12962963,0.00021973,2]
[349848765,1737459072405,-324.0,0.00021973,2]
[349848766,1737459072417,-150.0,0.00021973,4]
[349848767,1737459072430,-150.0,0.00021973,4]
[349848768,1737459072442,-150.0,0.00021973,4]
[349848769,1737459072456,-360010.95606178,0.0002198,2]
[349848770,1737459072469,-151.0,0.0002198,7]
[349848771,1737459072482,-151.0,0.0002198,7]
[349848772,1737459072495,-615.362484,0.0002198,7]
[349848773,1737459072508,-289.839424,0.0002198,7]
[349848774,1737459072520,-615.362484,0.0002198,7]
[349848775,1737459072533,-151.0,0.0002198,7]
[349848776,1737459072546,-151.0,0.0002198,7]
[349848777,1737459072559,-288.822405,0.0002198,7]
[349848778,1737459072574,-288.822405,0.0002198,7]
[349848779,1737459072586,-151.590323,0.0002198,7]
[349848780,1737459072600,-150.72376192,0.0002198,2]
[349848781,1737459072613,-150.58441775,0.0002198,2]
[349848782,1737459072626,-500.0,0.0002198,2]
[349848783,1737459072642,-150.0999876,0.0002198,2]
[349848784,1737459072655,-150.0,0.0002198,2]
[349848785,1737459072671,-150.0,0.0002198,2]
[349848786,1737459072684,-500.0,0.0002198,2]
[349848787,1737459072696,-153.79777201,0.0002198,2]
[349848788,1737459072709,-880.5140127,0.00021985,2]
[349848789,1737459072722,-5261.3846856,0.00021985,2]
[349848790,1737459072735,-150.0,0.00021985,2]
[349848791,1737459072747,-336.21019932,0.00021985,2]
[349848792,1737459072760,-22793.1172099,0.0002199,14]
[349848793,1737459072773,-59388.41220832,0.00021996,2]
[349848794,1737459072786,-500.99,0.00021997,2]
[349848795,1737459072799,-500.0,0.00021997,2]
[349848796,1737459072811,-500.0,0.00021997,2]
[349848797,1737459072824,-500.0,0.00021997,2]
[349848798,1737459072836,-500.0,0.00021997,2]
[349848799,1737459072849,-500.0,0.00021997,2]
[349848800,1737459072861,-500.0,0.00021997,2]
[349848801,1737459072873,-500.0,0.00021997,2]
[349848802,1737459072886,-383213.74488984,0.00021998,2]
[349848803,1737459073405,-500.0,0.00019178,2]
[349848804,1737459073414,-121.7204997,0.00021998,2]
[349848805,1737459073444,-500.0,0.00021917,2]
[349848806,1737459073454,-2109.90675436,0.00021998,2]
[349848807,1737459073465,-494.369955,0.00021998,2]
[349848808,1737459073476,-346.660013,0.00021998,2]
[349848809,1737459073487,-558.27443383,0.00021998,2]
[349848810,1737459073499,-4154.17774948,0.00021998,2]
[349848811,1737459073514,-4290.37390388,0.00021998,2]
[349848812,1737459073524,-500.0,0.00021998,2]
[349848813,1737459073533,-151.0,0.00021998,7]
[349848814,1737459073542,-1099.665887,0.00021998,7]
[349848815,1737459073552,-1099.665887,0.00021998,7]
[349848816,1737459073566,-230.042506,0.00021998,7]
[349848817,1737459073575,-230.042506,0.00021998,7]
[349848818,1737459073585,-158.118766,0.00021998,7]
[349848819,1737459073595,-158.118766,0.00021998,7]
[349848820,1737459073606,-113517.45058512,0.00021999,2]
[349848821,1737459073615,-1397.1088611,0.00021999,2]
[349848822,1737459073624,-30108.86887276,0.00021999,2]
[349848823,1737459073637,-1001.0949,0.00021999,2]
[349848824,1737459073646,-666.0,0.00021999,2]
[349848825,1737459073655,-296.916679,0.00021999,7]
[349848826,1737459073665,-151.0,0.00021999,7]
[349848827,1737459073674,-151.0,0.00021999,7]
[349848828,1737459073683,-283.736017,0.00021999,7]
[349848829,1737459073693,-151.0,0.00021999,7]
[349848830,1737459073702,-151.0,0.00021999,7]
[349848831,1737459073712,-151.0,0.00021999,7]
[349848832,1737459073722,-500.0,0.00021999,2]
[349848833,1737459073731,-500.0,0.00021999,2]
[349848834,1737459073740,-500.0,0.00021999,2]
[349848835,1737459073750,-183.67706834,0.00021999,2]
[349848836,1737459073759,-151.0,0.00021999,7]
[349848837,1737459073769,-151.0,0.00021999,7]
[349848838,1737459073778,-217.204996,0.00021999,7]
[349848839,1737459073787,-217.204996,0.00021999,7]
[349848840,1737459073796,-942.015304,0.00021999,7]
[349848841,1737459073806,-942.015304,0.00021999,7]
[349848842,1737459073815,-1693.51306782,0.00022,2]
[349848843,1737459073824,-17414.65156122,0.00022,5]
[349848844,1737459073835,-4706.58125479,0.00022,5]
[349848845,1737459073846,-21940.78221319,0.00022,5]
[349848846,1737459073869,-646.1276,0.00020815,2]
[349848847,1737459074134,-500.55822954,0.00019178,2]
[349848848,1737459074145,-500.0,0.00019178,2]
[349848849,1737459074154,-500.0,0.00019451,2]
[349848850,1737459074164,-356.7040842,0.00019452,2]
[349848851,1737459074173,-500.0,0.00019725,2]
[349848852,1737459074182,-500.0,0.00019725,2]
[349848853,1737459074191,-500.0,0.00019725,2]
[349848854,1737459074200,-500.0,0.00019999,2]
[349848855,1737459074209,-500.0,0.00019999,2]
[349848856,1737459074218,-500.0,0.00019999,2]
[349848857,1737459074227,-500.0,0.00020273,2]
[349848858,1737459074236,-500.0,0.00020273,2]
[349848859,1737459074246,-500.0,0.00020547,2]
[349848860,1737459074255,-540.75811427,0.00020815,2]
[349848861,1737459074286,-500.0,0.00020273,2]
[349848862,1737459074294,-11.25,0.00020547,2]
[349848863,1737459074309,-488.75,0.00020547,2]
[349848864,1737459074318,-831.11428573,0.00020815,2]
[349848865,1737459074328,-500.0,0.00020821,2]
[349848866,1737459074337,-772.38143627,0.00022,5]
[349848867,1737459074348,-17021.42528332,0.00022,5]
[349848868,1737459074357,-4285.86666627,0.00022,2]
[349848869,1737459074371,-664.62,0.00022,2]
[349848870,1737459074903,-206.17630002,0.000167,2]
[349848871,1737459074913,-206.17630001,0.000167,2]
[349848872,1737459074922,-500.0,0.00019178,2]
[349848873,1737459074931,-500.0,0.00019178,2]
[349848874,1737459074940,-518.30301328,0.00019178,2]
[349848875,1737459074950,-500.0,0.00019178,2]
[349848876,1737459074960,-500.0,0.0001945,2]
[349848877,1737459074969,-500.0,0.00019451,2]
[349848878,1737459074978,-500.0,0.00019451,2]
[349848879,1737459074988,-500.0,0.00019451,2]
[349848880,1737459074997,-500.0,0.00019452,2]
[349848881,1737459075007,-500.0,0.00019452,2]
[349848882,1737459075016,-500.0,0.00019452,2]
[349848883,1737459075026,-500.0,0.00019724,2]
[349848884,1737459075035,-500.0,0.00019725,2]
[349848885,1737459075044,-238.07669919,0.00019725,2]
[349848886,1737459075055,-261.92330081,0.00019725,2]
[349848887,1737459075064,-422.5166992,0.00019725,2]
[349848888,1737459075084,-77.4833008,0.00019725,2]
[349848889,1737459075093,-500.0,0.00019726,2]
[349848890,1737459075103,-640.49868728,0.00019726,2]
[349848891,1737459075112,-500.0,0.00019999,2]
[349848892,1737459075121,-500.0,0.00019999,2]
[349848893,1737459075130,-500.0,0.00020273,2]
[349848894,1737459075142,-501.55272918,0.00020273,2]
[349848895,1737459075152,-151.54188646,0.00020546,2]
[349848896,1737459075161,-385.48543262,0.00020547,2]
[349848897,1737459075170,-500.0,0.00020547,2]
[349848898,1737459075180,-500.0,0.00020821,2]
[349848899,1737459075189,-181.81,0.00020821,2]
[349848900,1737459075199,-614.12,0.00021095,2]
[349848901,1737459075208,-500.0,0.00021095,2]
[349848902,1737459075218,-349.25385768,0.00021369,2]
[349848903,1737459075230,-150.74614232,0.00021369,2]
[349848904,1737459075240,-500.0,0.00021643,2]
[349848905,1737459075249,-500.0,0.00021917,2]
[349848906,1737459075258,-5338.25158552,0.00022,2]
[349848907,1737459075275,-206.17630001,0.000167,2]
[349848908,1737459075284,-830.22369999,0.00022,2]
[349848909,1737459075295,-598.23395687,0.00022,2]
[349848910,1737459075316,-500.0,0.00019725,2]
[349848911,1737459075325,-409.13187703,0.00019999,2]
[349848912,1737459075337,-90.86812297,0.00019999,2]
[349848913,1737459075346,-5080.19906025,0.00022,2]
[349848914,1737459075682,-206.17630001,0.000167,2]
[349848915,1737459075692,-206.17630001,0.000167,2]
[349848916,1737459075702,-206.17630001,0.000167,2]
[349848917,1737459075711,-206.17630001,0.000167,2]
[349848918,1737459075720,-206.17630001,0.000167,2]
[349848919,1737459075729,-206.17630001,0.000167,2]
[349848920,1737459075739,-206.17630001,0.000167,2]
[349848921,1737459075750,-500.0,0.00019178,2]
[349848922,1737459075759,-500.0,0.00019178,2]
[349848923,1737459075768,-500.0,0.00019178,2]
[349848924,1737459075777,-500.0,0.00019178,2]
[349848925,1737459075786,-500.0,0.00019452,2]
[349848926,1737459075795,-500.0,0.00019452,2]
[349848927,1737459075805,-310.50373551,0.00019726,2]
[349848928,1737459075814,-500.0,0.00019726,2]
[349848929,1737459075823,-500.0,0.00019998,2]
[349848930,1737459075832,-500.0,0.00019999,2]
[349848931,1737459075842,-151.0,0.0002,2]
[349848932,1737459075850,-151.0,0.0002,2]
[349848933,1737459075858,-500.0,0.00020272,2]
[349848934,1737459075868,-500.0,0.00020273,2]
[349848935,1737459075877,-269.08045016,0.00020273,2]
[349848936,1737459075886,-981.79,0.00020356,2]
[349848937,1737459075895,-500.0,0.00020546,2]
[349848938,1737459075904,-500.0,0.00020547,2]
[349848939,1737459075913,-500.0,0.0002082,2]
[349848940,1737459075922,-500.0,0.00020821,2]
[349848941,1737459075932,-151.0,0.000209,2]
[349848942,1737459075941,-151.0,0.000209,2]
[349848943,1737459075950,-500.0,0.00021094,2]
[349848944,1737459075959,-500.0,0.00021095,2]
[349848945,1737459075968,-500.0,0.00021368,2]
[349848946,1737459075977,-500.0,0.00021369,2]
[349848947,1737459075986,-151.0,0.000214,2]
[349848948,1737459075995,-151.0,0.000214,2]
[349848949,1737459076004,-500.0,0.00021642,2]
[349848950,1737459076014,-500.0,0.00021643,2]
[349848951,1737459076023,-500.0,0.00021916,2]
[349848952,1737459076032,-500.0,0.00021917,2]
[349848953,1737459076041,-151.0,0.0002198,7]
[349848954,1737459076218,-398721.39393865,0.00022,2]
[349848955,1737459076308,-206.17630001,0.00016991,2]
[349848956,1737459076317,-500.0,0.00019178,2]
[349848957,1737459076327,-121.08048479,0.00019452,2]
[349848958,1737459076356,-378.91951521,0.00019452,2]
[349848959,1737459076365,-508.60894906,0.0002,2]
[349848960,1737459076375,-153.76999,0.0002198,7]
[349848961,1737459076387,-2355.59624384,0.00022,2]
[349848965,1737459894900,244.13,0.00010137,2]
[349848968,1737460069228,50000.0,0.0002266,30]
[349848969,1737460072969,50000.0,0.0002266,31]
[349848970,1737460076251,50000.0,0.0002266,32]
[349848971,1737460079508,50000.0,0.0002266,33]
[349848972,1737460083167,50000.0,0.0002266,34]
[349849011,1737460232332,-1396.50221221,0.00011972,2]
[349849013,1737460232344,-293.44001835,0.00011972,2]
[349849015,1737460232354,-550.0,0.00015,2]
[349849018,1737460232369,-250.0,0.00015819,2]
[349849020,1737460232379,-500.0,0.00015918,2]
[349849022,1737460232389,-937.3,0.00016602,2]
[349849024,1737460232398,-244.13,0.00016813,2]
[349849026,1737460232408,-587.0,0.00017068,2]
[349849028,1737460232418,-500.0,0.00017836,2]
[349849030,1737460232428,-235.9,0.00017972,2]
[349849031,1737460232438,-458.39,0.00018018,2]
[349849032,1737460232447,-1000.0,0.00018185,2]
[349849033,1737460232458,-500.0,0.00018219,2]
[349849034,1737460232467,-169.15,0.00018314,2]
[349849035,1737460232477,-667.52,0.00018321,2]
[349849036,1737460232487,-250.0,0.00018365,2]
[349849037,1737460232496,-2646.69851576,0.00018436,2]
[349849038,1737460232516,-415.892448,0.00018436,2]